fUSD/lending_fUSD_20250804
["ID","MTS","AMOUNT","RATE_DAILY","PERIOD"]
[377271237,1754310650620,-310.307482,0.00053,120]
[377271238,1754310650632,-519.81750025,0.00053,120]
[377271239,1754310652620,-5963.30164871,0.00044767,15]
[377271240,1754310652630,-809.0,0.0004579,2]
[377271241,1754310652639,-1000.0,0.00046027,120]
[377271242,1754310652649,-1000.0,0.00046027,120]
[377271243,1754310652658,-1000.0,0.00046027,120]
[377271244,1754310652668,-1000.0,0.00046027,120]
[377271245,1754310652678,-1000.0,0.00046027,120]
[377271246,1754310652688,-1000.0,0.00046027,120]
[377271247,1754310652697,-400.0,0.00046027,120]
[377271248,1754310652707,-888.0,0.000473,120]
[377271249,1754310652716,-409.504,0.0004879,2]
[377271250,1754310652726,-1776.0,0.0004954,120]
[377271251,1754310652735,-888.0,0.000505,30]
[377271252,1754310652745,-1179.29,0.00051078,30]
[377271253,1754310652755,-500.0,0.00051989,120]
[377271254,1754310652764,-500.0,0.00051989,120]
[377271255,1754310652774,-500.0,0.00051989,120]
[377271256,1754310652784,-500.0,0.00051989,120]
[377271257,1754310652794,-500.0,0.00051989,120]
[377271258,1754310652804,-500.0,0.00051989,120]
[377271259,1754310652814,-500.0,0.00051989,120]
[377271260,1754310652823,-500.0,0.00051989,120]
[377271261,1754310652833,-500.0,0.00051989,120]
[377271262,1754310652842,-500.0,0.00051989,120]
[377271263,1754310652852,-888.0,0.000524,18]
[377271264,1754310652861,-888.0,0.00052489,120]
[377271265,1754310652871,-1776.0,0.0005274,30]
[377271266,1754310652880,-63682.94283258,0.00053,120]
[377271267,1754310652890,-170.78527118,0.00053,30]
[377271268,1754310652900,-1000.0,0.00053,120]
[377271269,1754310652909,-524839.90390633,0.00053,120]
[377271270,1754310652942,-11646.13955522,0.00053,120]
[377271271,1754310652953,-465.16207347,0.00053,120]
[377271272,1754310652965,-2193.919995,0.00053,120]
[377271273,1754310652976,-3637.575,0.00053,120]
[377271274,1754310652988,-2630.64669746,0.00053,120]
[377271275,1754310653069,-500.0,0.00051989,120]
[377271276,1754310653079,-2992.07152448,0.00053,120]
[377271277,1754310653133,-770.69613598,0.00053,120]
[377271278,1754310653144,-834.84277497,0.00053,120]
[377271279,1754310653156,-449989.04233709,0.00053,120]
[377271280,1754310653165,-578.57991078,0.00053,2]
[377271281,1754310653175,-586.0,0.00053,120]
[377271282,1754310653184,-438.0,0.00053,120]
[377271283,1754310653194,-160.0,0.00053,120]
[377271284,1754310653203,-156.12,0.00053,30]
[377271285,1754310653213,-1124.28853107,0.00053021,10]
[377271286,1754310653223,-981.5226712,0.00053096,2]
[377271287,1754310653232,-500.0,0.00053151,120]
[377271288,1754310653241,-478.0,0.00053151,120]
[377271289,1754310653250,-500.0,0.00053151,120]
[377271290,1754310653260,-236.63848112,0.00053151,120]
[377271291,1754310653269,-500.0,0.00053151,120]
[377271292,1754310653279,-500.0,0.00053151,120]
[377271293,1754310653288,-632.05973538,0.00053151,120]
[377271294,1754310653298,-500.0,0.00053151,120]
[377271295,1754310653307,-500.0,0.00053151,120]
[377271296,1754310653317,-500.0,0.00053151,120]
[377271297,1754310653334,-569.0,0.00053151,120]
[377271298,1754310653344,-500.0,0.00053151,2]
[377271299,1754310653354,-500.0,0.00053151,120]
[377271300,1754310653363,-457.0,0.00053151,120]
[377271301,1754310653378,-1415.0,0.00053151,120]
[377271302,1754310653388,-527.0,0.00053151,120]
[377271303,1754310653398,-157.47796485,0.00053151,120]
[377271304,1754310653407,-594.0,0.00053151,120]
[377271305,1754310653418,-457.0,0.00053151,120]
[377271306,1754310653427,-502.06916177,0.00053168,10]
[377271307,1754310653438,-500.0,0.00053191,120]
[377271308,1754310653448,-182.0,0.0005321,60]
[377271309,1754310653459,-182.0,0.0005321,60]
[377271310,1754310653472,-182.0,0.0005321,60]
[377271311,1754310653481,-182.0,0.0005321,60]
[377271312,1754310653489,-182.0,0.0005321,60]
[377271313,1754310653499,-182.0,0.0005321,60]
[377271314,1754310653508,-182.0,0.0005321,60]
[377271315,1754310653517,-182.0,0.0005321,60]
[377271316,1754310653526,-182.0,0.0005321,60]
[377271317,1754310653538,-182.0,0.0005321,60]
[377271318,1754310653547,-182.0,0.0005321,60]
[377271319,1754310653556,-182.0,0.0005321,60]
[377271320,1754310653566,-182.0,0.0005321,60]
[377271321,1754310653576,-182.0,0.0005321,60]
[377271322,1754310653586,-182.0,0.0005321,60]
[377271323,1754310653599,-182.0,0.0005321,60]
[377271324,1754310653609,-182.0,0.0005321,60]
[377271325,1754310653619,-153.0,0.0005321,60]
[377271326,1754310653628,-153.0,0.0005321,60]
[377271327,1754310653637,-182.0,0.0005321,60]
[377271328,1754310653647,-182.0,0.0005321,60]
[377271329,1754310653657,-182.0,0.0005321,60]
[377271330,1754310653666,-182.0,0.0005321,60]
[377271331,1754310653676,-182.0,0.0005321,60]
[377271332,1754310653686,-182.0,0.0005321,60]
[377271333,1754310653696,-182.0,0.0005321,60]
[377271334,1754310653705,-182.0,0.0005321,60]
[377271335,1754310653715,-182.0,0.0005321,60]
[377271336,1754310653724,-182.0,0.0005321,60]
[377271337,1754310653734,-182.0,0.0005321,60]
[377271338,1754310653744,-182.0,0.0005321,60]
[377271339,1754310653753,-182.0,0.0005321,60]
[377271340,1754310654029,-182.0,0.0005321,60]
[377271341,1754310654040,-153.0,0.0005321,60]
[377271342,1754310654050,-153.0,0.0005321,60]
[377271343,1754310654060,-182.0,0.0005321,60]
[377271344,1754310654069,-182.0,0.0005321,60]
[377271345,1754310654078,-182.0,0.0005321,60]
[377271346,1754310654087,-182.0,0.0005321,60]
[377271347,1754310654096,-182.0,0.0005321,60]
[377271348,1754310654106,-182.0,0.0005321,60]
[377271349,1754310654115,-182.0,0.0005321,60]
[377271350,1754310654126,-182.0,0.0005321,60]
[377271351,1754310654135,-182.0,0.0005321,60]
[377271352,1754310654144,-182.0,0.0005321,60]
[377271353,1754310654154,-182.0,0.0005321,60]
[377271354,1754310654163,-182.0,0.0005321,60]
[377271355,1754310654173,-182.0,0.0005321,60]
[377271356,1754310654182,-182.0,0.0005321,60]
[377271357,1754310654192,-153.0,0.0005321,60]
[377271358,1754310654201,-153.0,0.0005321,60]
[377271359,1754310654211,-182.0,0.00053238,60]
[377271360,1754310654220,-182.0,0.00053238,60]
[377271361,1754310654230,-182.0,0.00053238,60]
[377271362,1754310654239,-182.0,0.00053238,60]
[377271363,1754310654249,-182.0,0.00053238,60]
[377271364,1754310654258,-182.0,0.00053238,60]
[377271365,1754310654267,-182.0,0.00053238,60]
[377271366,1754310654277,-182.0,0.00053238,60]
[377271367,1754310654287,-182.0,0.00053238,60]
[377271368,1754310654296,-182.0,0.00053238,60]
[377271369,1754310654306,-182.0,0.00053238,60]
[377271370,1754310654316,-182.0,0.00053238,60]
[377271371,1754310654325,-182.0,0.00053238,60]
[377271372,1754310654335,-182.0,0.00053238,60]
[377271373,1754310654344,-182.0,0.00053238,60]
[377271374,1754310654354,-182.0,0.00053238,60]
[377271375,1754310654363,-182.0,0.00053238,60]
[377271376,1754310654376,-182.0,0.00053238,60]
[377271377,1754310654385,-182.0,0.00053238,60]
[377271378,1754310654395,-182.0,0.00053238,60]
[377271379,1754310654404,-182.0,0.00053238,60]
[377271380,1754310654415,-182.0,0.00053238,60]
[377271381,1754310654426,-182.0,0.00053238,60]
[377271382,1754310654436,-182.0,0.00053238,60]
[377271383,1754310654447,-182.0,0.00053238,60]
[377271384,1754310654457,-182.0,0.00053238,60]
[377271385,1754310654466,-182.0,0.00053238,60]
[377271386,1754310654476,-182.0,0.00053238,60]
[377271387,1754310654485,-182.0,0.00053238,60]
[377271388,1754310654495,-153.0,0.00053238,60]
[377271389,1754310654504,-153.0,0.00053238,60]
[377271390,1754310654514,-888.0,0.0005324,120]
[377271391,1754310654523,-500.0,0.00053264,120]
[377271392,1754310654533,-1129.27877224,0.00053274,2]
[377271393,1754310654542,-448.10053896,0.0005331,2]
[377271394,1754310654551,-725.69022559,0.00053324,52]
[377271395,1754310654561,-3876.71838569,0.00053346,2]
[377271396,1754310654570,-500.0,0.0005338,120]
[377271397,1754310654579,-3720.39,0.000534,60]
[377271398,1754310654589,-500.0,0.00053424,120]
[377271399,1754310654599,-500.0,0.00053424,120]
[377271400,1754310654608,-500.0,0.00053424,120]
[377271401,1754310654618,-500.0,0.00053424,120]
[377271402,1754310654627,-500.0,0.00053424,120]
[377271403,1754310654637,-300.0,0.00053424,120]
[377271404,1754310654646,-500.0,0.00053424,120]
[377271405,1754310654655,-300.0,0.00053424,120]
[377271406,1754310654665,-500.0,0.00053424,120]
[377271407,1754310654674,-300.0,0.00053424,120]
[377271408,1754310654683,-500.0,0.00053424,120]
[377271409,1754310654693,-300.0,0.00053424,120]
[377271410,1754310654703,-300.0,0.00053424,120]
[377271411,1754310654714,-500.0,0.00053424,120]
[377271412,1754310654723,-500.0,0.00053424,120]
[377271413,1754310654734,-300.0,0.00053424,120]
[377271414,1754310654743,-300.0,0.00053424,120]
[377271415,1754310654754,-500.0,0.00053424,120]
[377271416,1754310654764,-300.0,0.00053424,120]
[377271417,1754310654774,-500.0,0.00053424,120]
[377271418,1754310654783,-590.71309864,0.00053424,120]
[377271419,1754310654793,-300.0,0.00053424,120]
[377271420,1754310654802,-500.0,0.00053424,120]
[377271421,1754310654812,-300.0,0.00053424,120]
[377271422,1754310654821,-500.0,0.00053424,120]
[377271423,1754310654831,-300.0,0.00053424,120]
[377271424,1754310654841,-500.0,0.00053424,120]
[377271425,1754310654850,-500.0,0.00053424,120]
[377271426,1754310654859,-151.0,0.00053424,120]
[377271427,1754310654869,-300.0,0.00053424,120]
[377271428,1754310654878,-516.21665605,0.00053424,120]
[377271429,1754310654888,-151.0,0.00053424,120]
[377271430,1754310654897,-300.0,0.00053424,120]
[377271431,1754310654907,-151.0,0.00053424,120]
[377271432,1754310654916,-300.0,0.00053424,120]
[377271433,1754310654926,-151.0,0.00053424,120]
[377271434,1754310654935,-200.0,0.00053424,120]
[377271435,1754310654944,-300.0,0.00053424,120]
[377271436,1754310654953,-151.0,0.00053424,120]
[377271437,1754310654962,-300.0,0.00053424,120]
[377271438,1754310654972,-151.0,0.00053424,120]
[377271439,1754310654981,-300.0,0.00053424,120]
[377271440,1754310654991,-151.0,0.00053424,120]
[377271441,1754310655000,-300.0,0.00053424,120]
[377271442,1754310655010,-151.0,0.00053424,120]
[377271443,1754310655019,-300.0,0.00053424,120]
[377271444,1754310655029,-151.0,0.00053424,120]
[377271445,1754310655039,-200.0,0.00053424,120]
[377271446,1754310655048,-207.4,0.00053424,120]
[377271447,1754310655058,-151.0,0.00053424,120]
[377271448,1754310655067,-300.0,0.00053424,120]
[377271449,1754310655076,-215.0738,0.00053424,120]
[377271450,1754310655085,-151.0,0.00053424,120]
[377271451,1754310655095,-151.0,0.00053424,120]
[377271452,1754310655105,-223.0315306,0.00053424,120]
[377271453,1754310655114,-151.0,0.00053424,120]
[377271454,1754310655123,-231.28369723,0.00053424,120]
[377271455,1754310655132,-151.0,0.00053424,120]
[377271456,1754310655142,-239.84119403,0.00053424,120]
[377271457,1754310655152,-151.0,0.00053424,120]
[377271458,1754310655161,-248.71531821,0.00053424,120]
[377271459,1754310655170,-151.0,0.00053424,120]
[377271460,1754310655180,-257.91778498,0.00053424,120]
[377271461,1754310655190,-285.41647922,0.00053424,120]
[377271462,1754310655200,-3888.0,0.00053424,120]
[377271463,1754310655210,-151.0,0.00053424,120]
[377271464,1754310655220,-4031.856,0.00053424,120]
[377271465,1754310655229,-151.0,0.00053424,120]
[377271466,1754310655238,-4181.034672,0.00053424,120]
[377271467,1754310655248,-151.0,0.00053424,120]
[377271468,1754310655257,-4335.73295486,0.00053424,120]
[377271469,1754310655267,-211.09601854,0.00053424,120]
[377271470,1754310655276,-4496.15507419,0.00053424,120]
[377271471,1754310655287,-573.95689894,0.00053424,120]
[377271472,1754310655297,-500.0,0.00053425,120]
[377271473,1754310655307,-478.0,0.00053425,120]
[377271474,1754310655316,-500.0,0.00053425,120]
[377271475,1754310655326,-500.0,0.00053425,120]
[377271476,1754310655336,-340.24063134,0.00053425,120]
[377271477,1754310655345,-500.0,0.00053425,120]
[377271478,1754310655355,-500.0,0.00053425,120]
[377271479,1754310655364,-500.0,0.00053425,120]
[377271480,1754310655377,-569.0,0.00053425,120]
[377271481,1754310655387,-500.0,0.00053425,2]
[377271482,1754310655397,-500.0,0.00053425,120]
[377271483,1754310655407,-457.0,0.00053425,120]
[377271484,1754310655416,-1415.0,0.00053425,120]
[377271485,1754310655427,-527.0,0.00053425,120]
[377271486,1754310655437,-594.0,0.00053425,120]
[377271487,1754310655448,-457.0,0.00053425,120]
[377271488,1754310655459,-1294.54001467,0.00053425,120]
[377271489,1754310655469,-232.39395478,0.00053425,120]
[377271490,1754310655479,-200.0,0.00053425,15]
[377271491,1754310655489,-1277.03487328,0.00053453,2]
[377271492,1754310655498,-2000.0,0.000535,120]
[377271493,1754310655508,-2000.0,0.000535,120]
[377271494,1754310655518,-152.0,0.000535,120]
[377271495,1754310655528,-156.12,0.000535,30]
[377271496,1754310655538,-200.0,0.00053605,120]
[377271497,1754310655548,-1424.79097432,0.00053632,2]
[377271498,1754310655557,-586.0,0.00053699,120]
[377271499,1754310655567,-438.0,0.00053699,120]
[377271501,1754310655576,-500.0,0.00053699,120]
[377271502,1754310655586,-478.0,0.00053699,120]
[377271503,1754310655595,-310.1827164,0.00053699,120]
[377271504,1754310655604,-500.0,0.00053699,120]
[377271505,1754310655615,-500.0,0.00053699,120]
[377271506,1754310655624,-500.0,0.00053699,120]
[377271507,1754310655633,-500.0,0.00053699,120]
[377271508,1754310655643,-569.0,0.00053699,120]
[377271509,1754310655653,-500.0,0.00053699,2]
[377271510,1754310655663,-500.0,0.00053699,120]
[377271511,1754310655672,-457.0,0.00053699,120]
[377271512,1754310655682,-1415.0,0.00053699,120]
[377271513,1754310655692,-527.0,0.00053699,120]
[377271514,1754310655702,-594.0,0.00053699,120]
[377271515,1754310655712,-457.0,0.00053699,120]
[377271516,1754310655722,-154.0,0.000538,120]
[377271517,1754310655732,-1572.54707536,0.00053811,2]
[377271518,1754310655742,-400.0,0.0005387,7]
[377271519,1754310655752,-400.0,0.0005387,7]
[377271520,1754310655761,-228.45,0.00053881,120]
[377271521,1754310655771,-1011.34098895,0.000539,120]
[377271522,1754310655781,-151.0,0.000539,30]
[377271523,1754310655791,-151.0,0.000539,30]
[377271524,1754310655801,-1213.0,0.000539,30]
[377271525,1754310655810,-165.7,0.000539,68]
[377271526,1754310655820,-151.0,0.000539,30]
[377271527,1754310655830,-151.0,0.000539,30]
[377271528,1754310655839,-151.0,0.000539,30]
[377271529,1754310655849,-151.0,0.000539,30]
[377271530,1754310655859,-151.0,0.000539,30]
[377271531,1754310655868,-154.73384471,0.000539,30]
[377271532,1754310655878,-1213.0,0.000539,30]
[377271533,1754310655887,-1213.0,0.000539,30]
[377271534,1754310655896,-1213.0,0.000539,30]
[377271535,1754310655907,-1213.0,0.000539,30]
[377271536,1754310655917,-1213.0,0.000539,30]
[377271537,1754310655926,-1213.0,0.000539,30]
[377271538,1754310655935,-1213.0,0.000539,30]
[377271539,1754310655945,-1213.0,0.000539,30]
[377271540,1754310655954,-1213.0,0.000539,30]
[377271541,1754310655964,-1213.0,0.000539,30]
[377271542,1754310655973,-1213.0,0.000539,30]
[377271543,1754310655982,-1213.0,0.000539,30]
[377271544,1754310655992,-1213.0,0.000539,30]
[377271545,1754310656001,-325.64242775,0.000539,30]
[377271546,1754310656010,-200.0,0.00053959,15]
[377271547,1754310656020,-424.51457525,0.00053973,120]
[377271548,1754310656029,-478.0,0.00053973,120]
[377271549,1754310656040,-500.0,0.00053973,120]
[377271550,1754310656050,-500.0,0.00053973,120]
[377271551,1754310656059,-500.0,0.00053973,120]
[377271552,1754310656069,-500.0,0.00053973,120]
[377271553,1754310656078,-569.0,0.00053973,120]
[377271554,1754310656088,-500.0,0.00053973,2]
[377271555,1754310656098,-500.0,0.00053973,120]
[377271556,1754310656108,-457.0,0.00053973,120]
[377271557,1754310656117,-1415.0,0.00053973,120]
[377271558,1754310656126,-527.0,0.00053973,120]
[377271559,1754310656136,-594.0,0.00053973,120]
[377271560,1754310656145,-457.0,0.00053973,120]
[377271561,1754310656155,-1720.30317641,0.0005399,2]
[377271562,1754310656164,-1079.45039557,0.00053998,90]
[377271563,1754310656174,-150.0,0.00053999,33]
[377271564,1754310656183,-10193.73719294,0.00054,61]
[377271565,1754310656194,-61863.34716616,0.00054,49]
[377271566,1754310656203,-50000.0,0.00054,54]
[377271567,1754310656213,-128342.61048624,0.00054,120]
[377271569,1754310657055,-278.5,0.00050181,120]
[377271570,1754310657065,-338.30405217,0.00051988,120]
[377271571,1754310657089,-549.69594783,0.00051988,120]
[377271572,1754310657098,-500.0,0.00051989,120]
[377271573,1754310657108,-500.0,0.00051989,120]
[377271574,1754310657117,-500.0,0.00051989,120]
[377271575,1754310657126,-26.54619727,0.00051989,120]
[377271576,1754310657212,-473.45380273,0.00051989,120]
[377271577,1754310657222,-500.0,0.00051989,120]
[377271578,1754310657231,-2740.68594797,0.00054,120]
[377271579,1754310657273,-391.6691755,0.00054,120]
[377271580,1754310657286,-1158.42537416,0.00054,120]
[377271581,1754310657310,-5107.42618153,0.00054,120]
[377271617,1754310725235,-261.1,0.00034076,6]
[377271622,1754310736823,205.09258874,0.00035,2]
[377271756,1754310917159,155.0,0.00035,2]
[377271762,1754310942256,174.0,0.00020795,3]
[377271767,1754310957107,733.3,0.00034167,6]
[377271778,1754311165546,1095.34325585,0.00029519,2]
[377271780,1754311200402,1000.0,0.00035,30]
[377271782,1754311253860,672.2,0.00034168,6]
[377271784,1754311288344,330.68,0.00035,2]
[377271787,1754311443479,154.05,0.00013699,2]
[377271788,1754311443674,154.05,0.00026027,2]
[377271801,1754311546631,169.08,0.00035,2]
[377271802,1754311554466,616.2,0.0003417,6]
[377271804,1754311607089,-616.2,0.00035972,7]
[377271805,1754311607110,-2872.095782,0.00036483,7]
[377271806,1754311607129,-1455.229826,0.00036483,7]
[377271807,1754311607152,-29.97666776,0.00037765,2]
[377271811,1754311686820,151.0,0.00033154,2]
[377271821,1754311803122,191.81375733,0.00018,2]
[377271824,1754311832450,-500.0,0.00037483,2]
[377271825,1754311832460,-422.1152736,0.00037483,2]
[377271826,1754311832471,-6.6847264,0.00037774,15]
[377271827,1754311832504,-609.5152736,0.00037774,15]
[377271828,1754311832514,-900.0,0.00038,2]
[377271829,1754311832524,-3865.80072014,0.00038182,2]
[377271830,1754311832533,-154.05,0.00038356,2]
[377271831,1754311832543,-219.20777731,0.000389,39]
[377271832,1754311832552,-1090.0,0.00039,3]
[377271833,1754311832563,-616.2,0.00039576,15]
[377271834,1754311832572,-522.0003059,0.0003998,120]
[377271835,1754311832582,-639.281,0.0003999,56]
[377271836,1754311832591,-323.0,0.00039998,5]
[377271837,1754311832601,-300.0,0.00039999,5]
[377271838,1754311832612,-300.0,0.00039999,5]
[377271839,1754311832621,-274.73056452,0.0004,120]
[377271933,1754311833861,-11348.70602735,0.0004,120]
[377271934,1754311833892,-476.33135982,0.0004,120]
[377271935,1754311833932,-8520.12985037,0.0004,120]
[377271936,1754311833943,-3797.5856941,0.0004,2]
[377271937,1754311833952,-400.0,0.000403,2]
[377271938,1754311833963,-1332.77488247,0.00040909,2]
[377271940,1754311833973,-616.2,0.00041377,120]
[377271942,1754311833983,-150.99,0.00041902,2]
[377271943,1754311833993,-9999.99,0.00041902,2]
[377271945,1754311834004,-299.99,0.00041902,120]
[377271947,1754311834014,-1600.0,0.00041929,120]
[377271950,1754311834024,-250.0,0.00041947,120]
[377271952,1754311834035,-247.7,0.00042171,120]
[377271953,1754311834046,-1162.15,0.00042395,2]
[377271956,1754311834056,-3294.84,0.00042558,2]
[377271958,1754311834066,-1000.0,0.00042591,2]
[377271959,1754311834076,-177.53,0.00042826,7]
[377271961,1754311834086,-616.2,0.00043179,120]
[377271963,1754311834096,-500.0,0.0004321,5]
[377271965,1754311834106,-320.78472812,0.000438,120]
[377271967,1754311834115,-830.39,0.00043981,30]
[377271969,1754311834125,-466.93,0.00043981,30]
[377271971,1754311834135,-466.93,0.00043981,30]
[377271973,1754311834145,-818.41,0.00043981,30]
[377271975,1754311834154,-818.41,0.00043981,30]
[377271977,1754311834164,-466.93,0.00043981,30]
[377271979,1754311834174,-818.41,0.00043981,30]
[377271981,1754311834188,-466.93,0.00043981,30]
[377271983,1754311834198,-818.41,0.00043981,30]
[377271985,1754311834207,-466.93,0.00043981,30]
[377271987,1754311834217,-466.93,0.00043981,30]
[377271988,1754311834226,-1636.44,0.00043981,30]
[377271991,1754311834237,-466.93,0.00043981,30]
[377271993,1754311834248,-818.41,0.00043981,30]
[377271995,1754311834257,-818.41,0.00043981,30]
[377271997,1754311834267,-466.93,0.00043981,30]
[377271999,1754311834276,-466.93,0.00043981,30]
[377272001,1754311834286,-818.41,0.00043981,30]
[377272003,1754311834295,-209.0,0.00043999,60]
[377272005,1754311834305,-1017.64179015,0.00044,120]
[377272007,1754311834315,-150.52,0.00044118,30]
[377272009,1754311834324,-150.0,0.00044118,30]
[377272011,1754311834334,-537.09,0.00044118,30]
[377272013,1754311834343,-172.88,0.00044118,30]
[377272015,1754311834352,-150.0,0.00044118,30]
[377272017,1754311834362,-359.08,0.00044118,30]
[377272019,1754311834372,-224.74,0.00044118,30]
[377272021,1754311834382,-150.0,0.00044118,30]
[377272023,1754311834392,-165.39,0.00044118,30]
[377272025,1754311834401,-245.08,0.00044118,30]
[377272027,1754311834410,-537.09,0.00044118,30]
[377272029,1754311834420,-172.88,0.00044118,30]
[377272031,1754311834429,-165.39,0.00044118,30]
[377272033,1754311834439,-359.08,0.00044118,30]
[377272035,1754311834448,-150.0,0.00044118,30]
[377272037,1754311834457,-150.0,0.00044118,30]
[377272039,1754311834466,-537.09,0.00044118,30]
[377272041,1754311834475,-150.0,0.00044118,30]
[377272043,1754311834485,-165.39,0.00044118,30]
[377272044,1754311834495,-150.0,0.00044118,30]
[377272046,1754311834504,-359.08,0.00044118,30]
[377272049,1754311834514,-150.0,0.00044118,30]
[377272050,1754311834523,-172.88,0.00044118,30]
[377272052,1754311834533,-150.0,0.00044118,30]
[377272054,1754311834542,-150.0,0.00044118,30]
[377272056,1754311834554,-150.0,0.00044118,30]
[377272059,1754311834563,-150.0,0.00044118,30]
[377272060,1754311834573,-537.09,0.00044118,30]
[377272062,1754311834582,-150.0,0.00044118,30]
[377272064,1754311834592,-359.08,0.00044118,30]
[377272066,1754311834601,-172.88,0.00044118,30]
[377272068,1754311834610,-165.39,0.00044118,30]
[377272070,1754311834620,-165.39,0.00044118,30]
[377272072,1754311834630,-172.88,0.00044118,30]
[377272074,1754311834640,-150.0,0.00044118,30]
[377272076,1754311834650,-537.09,0.00044118,30]
[377272078,1754311834659,-150.0,0.00044118,30]
[377272080,1754311834669,-150.0,0.00044118,30]
[377272082,1754311834679,-150.0,0.00044118,30]
[377272084,1754311834688,-150.0,0.00044118,30]
[377272086,1754311834697,-359.08,0.00044118,30]
[377272088,1754311834707,-165.39,0.00044118,30]
[377272090,1754311834716,-537.09,0.00044118,30]
[377272092,1754311834726,-172.88,0.00044118,30]
[377272094,1754311834735,-281.98,0.00044118,30]
[377272096,1754311834745,-359.08,0.00044118,30]
[377272098,1754311834754,-150.0,0.00044118,30]
[377272100,1754311834764,-150.0,0.00044118,30]
[377272102,1754311834774,-537.09,0.00044118,30]
[377272104,1754311834784,-165.39,0.00044118,30]
[377272106,1754311834794,-150.0,0.00044118,30]
[377272108,1754311834804,-359.08,0.00044118,30]
[377272110,1754311834814,-172.88,0.00044118,30]
[377272112,1754311834824,-172.88,0.00044118,30]
[377272114,1754311834834,-150.0,0.00044118,30]
[377272116,1754311834843,-165.39,0.00044118,30]
[377272118,1754311834857,-537.09,0.00044118,30]
[377272120,1754311834866,-359.08,0.00044118,30]
[377272122,1754311834876,-537.09,0.00044118,30]
[377272124,1754311834885,-150.0,0.00044118,30]
[377272126,1754311834895,-165.39,0.00044118,30]
[377272128,1754311834904,-359.08,0.00044118,30]
[377272130,1754311834914,-172.88,0.00044118,30]
[377272132,1754311834923,-150.0,0.00044118,30]
[377272134,1754311834934,-306.54,0.00044392,30]
[377272136,1754311834944,-336.39365751,0.000444,33]
[377272138,1754311834953,-500.0,0.00044473,10]
[377272140,1754311834963,-6719.08489848,0.000445,120]
[377272142,1754311834976,-1250.25000056,0.000445,120]
[377272547,1754311839341,-18620.67240359,0.000445,120]
[377272549,1754311839351,-60287.55039381,0.000445,120]
[377272551,1754311839360,-5003.33231877,0.00044565,15]
[377272554,1754311839370,-150.0,0.00044665,2]
[377272556,1754311839379,-150.0,0.00044665,120]
[377272557,1754311839389,-175.0,0.00044681,7]
[377272560,1754311839398,-150.0,0.0004494,30]
[377272561,1754311839408,-150.0,0.0004494,30]
[377272563,1754311839417,-150.0,0.0004494,30]
[377272566,1754311839427,-150.0,0.0004494,30]
[377272568,1754311839438,-150.0,0.0004494,30]
[377272570,1754311839447,-150.0,0.0004494,30]
[377272572,1754311839456,-150.0,0.0004494,30]